fUSD/lending_fUSD_20241108
["ID","MTS","AMOUNT","RATE_DAILY","PERIOD"]
[341643909,1731057037734,-3385.2461,0.00026597,2]
[341643910,1731057037743,-2460.8264,0.00026597,2]
[341643911,1731057037752,-362.0,0.000266,2]
[341643912,1731057037762,-27214.25203113,0.0002673,2]
[341643913,1731057037771,-500.0,0.00026849,7]
[341643914,1731057037780,-5234.6943,0.00026882,2]
[341643915,1731057037789,-551.621,0.00026899,2]
[341643916,1731057037798,-992.47458815,0.00026899,2]
[341643917,1731057037808,-992.4745881,0.00026899,2]
[341643918,1731057037817,-992.4745881,0.00026899,2]
[341643919,1731057037826,-992.4745881,0.00026899,2]
[341643920,1731057037835,-992.4745881,0.00026899,2]
[341643921,1731057037844,-992.4745881,0.000269,2]
[341643922,1731057037854,-992.4745881,0.000269,2]
[341643923,1731057037864,-992.4745881,0.000269,2]
[341643924,1731057037873,-878.4067215,0.000269,2]
[341643925,1731057037882,-3942.66864499,0.000269,2]
[341643926,1731057037892,-361.28667125,0.00026922,2]
[341643927,1731057037901,-200.0,0.00026934,2]
[341643928,1731057037911,-6408.1603271,0.00026939,2]
[341643929,1731057037920,-361.28667125,0.0002694,2]
[341643930,1731057037930,-361.28667125,0.00026942,2]
[341643931,1731057037939,-361.28667125,0.00026954,2]
[341643932,1731057037947,-6408.1603271,0.00026955,2]
[341643933,1731057037957,-6408.1603271,0.00026955,2]
[341643934,1731057037966,-361.28667125,0.00026956,2]
[341643935,1731057037976,-6408.1603271,0.00026971,2]
[341643936,1731057037986,-500.14592014,0.00026973,2]
[341643937,1731057037995,-500.0,0.00026973,2]
[341643938,1731057038003,-500.0,0.00026973,2]
[341643939,1731057038012,-7426.7253512,0.00026982,2]
[341643940,1731057038022,-7237.7930203,0.00026982,2]
[341643942,1731057038031,-7048.8606894,0.00026982,2]
[341643944,1731057038040,-361.28667125,0.00026984,2]
[341643946,1731057038050,-6408.1603271,0.00026986,2]
[341643948,1731057038059,-239.74,0.00026989,2]
[341643951,1731057038069,-170.26037077,0.0002699,2]
[341643954,1731057038078,-170.26037077,0.0002699,2]
[341643957,1731057038087,-170.26037077,0.0002699,2]
[341643960,1731057038098,-239.74,0.0002699,2]
[341643962,1731057038107,-239.74,0.0002699,2]
[341643964,1731057038116,-239.74,0.0002699,2]
[341643966,1731057038125,-239.74,0.0002699,2]
[341643968,1731057038137,-4228.9822954,0.00026995,2]
[341643970,1731057038146,-1936.43318391,0.00026996,2]
[341643972,1731057038156,-300.0,0.00026996,120]
[341643974,1731057038164,-6408.1603271,0.00026997,2]
[341643976,1731057038175,-70941.52212291,0.00026997,2]
[341643978,1731057038184,-1908.9209442,0.00026997,2]
[341643980,1731057038193,-2000.0,0.00026997,2]
[341643982,1731057038202,-200.0,0.00026997,2]
[341643984,1731057038213,-19614.81161963,0.00026997,2]
[341643986,1731057038222,-537891.85521485,0.00026997,2]
[341643988,1731057038234,-793.92157661,0.00026997,2]
[341643991,1731057038252,-2512.71029907,0.00026997,2]
[341643993,1731057038262,-9364.42115503,0.00026997,2]
[341643995,1731057038273,-6239.54805551,0.00026997,2]
[341643998,1731057038284,-6852.49865591,0.00026997,2]
[341644000,1731057038293,-500.0,0.00026998,2]
[341644002,1731057038303,-500.0,0.00026998,2]
[341644004,1731057038312,-151.27538629,0.00026998,2]
[341644006,1731057038321,-958.69167944,0.00026999,2]
[341644008,1731057038330,-6645.88,0.00026999,3]
[341644010,1731057038339,-99019.25678494,0.00026999,2]
[341644012,1731057038348,-500.0,0.00026999,2]
[341644013,1731057038357,-388.35460228,0.00027,2]
[341644015,1731057038366,-2876.07503833,0.00027,2]
[341644017,1731057038375,-13932.60849435,0.00027,2]
[341644019,1731057038384,-972963.14412427,0.00027,4]
[341644127,1731057039456,-992.4745881,0.000269,2]
[341644130,1731057039465,-289636.30642017,0.00027,4]
[341644132,1731057039477,-2607.20000779,0.00027,4]
[341644142,1731057039552,-40139.00648398,0.00027,4]
[341644150,1731057039611,-88240.74425803,0.00027,4]
[341644152,1731057039623,-684.1663532,0.00027,4]
[341644158,1731057039670,-2314.74300993,0.00027,4]
[341644166,1731057039738,-20.18423379,0.00027,4]
[341644456,1731057042617,-896.13045,0.000269,2]
[341644457,1731057042627,-17330.86955,0.00027,4]
[341644769,1731057045841,-429964.54748649,0.00027,4]
[341644818,1731057046322,-642.99,0.00026192,2]
[341644820,1731057046334,-992.4745881,0.000269,2]
[341644823,1731057046345,-27364.5354119,0.00027,4]
[341644837,1731057046480,-125.55891067,0.00027,4]
[341644961,1731057123340,900.0,0.00025,7]
[341644962,1731057257549,202.0,0.00017,2]
[341644963,1731057277054,160.53,0.0002057,2]
[341644965,1731057318100,160.35,0.00015342,2]
[341644966,1731057345068,-154.63,0.00024566,2]
[341644967,1731057345112,-167.51690814,0.00025105,2]
[341644968,1731057345157,-297.98586449,0.00025205,7]
[341644969,1731057345204,-280.0,0.000253,10]
[341644970,1731057345534,-191.32,0.00025655,120]
[341644971,1731057345582,-487.84,0.00025655,2]
[341644972,1731057345631,-1599.26,0.00025704,2]
[341644973,1731057345679,-150.0,0.00025712,2]
[341644974,1731057345723,-15100.0,0.00025769,2]
[341644975,1731057345769,-1575.48,0.00025769,2]
[341644976,1731057345815,-155.76,0.00025997,2]
[341644977,1731057345861,-1111.12,0.00025997,2]
[341644978,1731057345909,-200.0,0.00025998,2]
[341644979,1731057345956,-1599.26,0.00026117,2]
[341644980,1731057346003,-362.0,0.00026192,2]
[341644981,1731057346049,-362.0,0.00026192,2]
[341644982,1731057346094,-362.0,0.00026192,2]
[341644983,1731057346141,-362.0,0.00026192,2]
[341644984,1731057346187,-362.0,0.00026192,2]
[341644985,1731057346233,-277.89,0.00026322,2]
[341644986,1731057346278,-362.0,0.000264,2]
[341644987,1731057346328,-1599.26,0.0002653,2]
[341644988,1731057346373,-2000.0,0.00026768,5]
[341644989,1731057346567,-500.0,0.00026796,2]
[341644990,1731057346612,-362.0,0.000268,2]
[341644991,1731057346658,-23363.4141,0.00026899,2]
[341644992,1731057346708,-362.0,0.000269,2]
[341644993,1731057346754,-362.0,0.000269,2]
[341644994,1731057346798,-569.7443,0.000269,2]
[341644995,1731057346840,-1481.1325,0.000269,2]
[341644996,1731057346884,-21776.4253,0.000269,2]
[341644997,1731057346926,-311.55302257,0.000269,2]
[341644998,1731057346968,-322.2292,0.000269,2]
[341644999,1731057347010,-265.87509601,0.00026921,2]
[341645000,1731057347053,-265.87509601,0.00026937,2]
[341645001,1731057347097,-1599.26,0.00026943,2]
[341645002,1731057347140,-265.87509601,0.00026959,2]
[341645003,1731057347184,-265.87509601,0.00026975,2]
[341645004,1731057347226,-265.87509601,0.0002699,2]
[341645005,1731057347267,-3128.6557183,0.00026995,2]
[341645006,1731057347311,-265.87509601,0.00026996,2]
[341645007,1731057347359,-968.21659196,0.00026999,2]
[341645008,1731057347593,-500.0,0.00026999,2]
[341645009,1731057347638,-500.0,0.00026999,2]
[341645010,1731057347684,-305.8927704,0.00026999,2]
[341645011,1731057347729,-2039872.90314808,0.00027,4]
[341645965,1731057748191,500.0,0.00025,7]
[341645966,1731057903879,-500.0,0.00025205,7]
[341645967,1731057903901,-600.0,0.00025205,7]
[341645968,1731057903923,-147.0,0.00025205,7]
[341645969,1731057952051,450.0,0.00021,2]
[341645975,1731057968139,4679.27528607,0.00021,2]
[341645976,1731057993875,308.40460092,0.00025,30]
[341645977,1731057999001,150.0,0.000228,2]
[341645979,1731058003100,166.28,0.00015342,2]
[341645980,1731058025147,-500.0,0.00023,2]
[341645981,1731058025168,-200.0,0.00023,2]
[341645982,1731058025189,-278.985951,0.00024278,2]
[341645983,1731058025212,-2328.0,0.000244,2]
[341645984,1731058025234,-1035.77,0.00024496,2]
[341645985,1731058025258,-890.46993144,0.00024734,2]
[341645986,1731058038279,-1286.67006856,0.00024734,2]
[341645987,1731058038300,-550.0,0.00025,2]
[341645988,1731058038322,-2177.14,0.00025131,2]
[341645989,1731058038345,-353.0,0.00025205,7]
[341645990,1731058038367,-150.99,0.00025205,2]
[341645991,1731058038388,-557.52929856,0.00025205,2]
[341645996,1731058101449,861.59571555,0.00022,12]
[341645997,1731058103634,499.999999,0.0002,2]
[341646006,1731058151109,-200.0,0.00023,2]
[341646007,1731058151131,-4990.364004,0.00023922,2]
[341646008,1731058154112,-5577.10312264,0.00023922,2]
[341646009,1731058163146,-1156.93,0.0002325,2]
[341646010,1731058165162,-31712.75119986,0.00023922,2]
[341646011,1731058165185,-1231.2571434,0.0002425,2]
[341646012,1731058165207,-337.3522825,0.0002442,2]
[341646013,1731058165229,-13471.3953575,0.0002445,2]
[341646017,1731058201412,300.0,0.00019725,2]
[341646018,1731058203109,200.0,0.00023,2]
[341646019,1731058212950,155.769,0.00021111,2]
[341646020,1731058214874,273.38314638,0.00018123,2]
[341646027,1731058231576,-1480.95501327,0.00025194,2]
[341646029,1731058231639,-1019.74276316,0.00025194,2]
[341646030,1731058231693,-0.55358589,0.00025194,2]
[341646031,1731058231709,-465.77863768,0.00025194,2]
[341646032,1731058231720,-1176.85070144,0.00025205,2]
[341646033,1731058231729,-386.74,0.00025214,2]
[341646034,1731058231741,-166.59,0.00025226,2]
[341646035,1731058231750,-646.94,0.00025232,120]
[341646036,1731058231760,-861.84,0.00025241,2]
[341646037,1731058231769,-200.0,0.00025243,2]
[341646038,1731058231778,-250.0,0.00025243,2]
[341646039,1731058231787,-2561.01,0.00025243,2]
[341646040,1731058231797,-1085.55,0.00025243,2]
[341646041,1731058231806,-619.37,0.00025243,2]
[341646042,1731058231815,-2471.86,0.00025243,2]
[341646043,1731058231824,-1118.07,0.00025243,2]
[341646044,1731058231833,-207.9,0.00025243,2]
[341646045,1731058231842,-302.88,0.00025268,2]
[341646046,1731058231851,-280.0,0.000253,10]
[341646047,1731058231860,-155.76,0.00025307,2]
[341646048,1731058231869,-517.17,0.00025307,2]
[341646049,1731058231879,-351.87,0.00025505,2]
[341646050,1731058231889,-1156.93,0.00025514,2]
[341646051,1731058231898,-351.87,0.00025519,2]
[341646052,1731058231908,-2177.14,0.00025529,2]
[341646053,1731058231917,-351.87,0.00025532,2]
[341646054,1731058231927,-1000.0,0.0002554,2]
[341646055,1731058231936,-693.71,0.0002554,2]
[341646056,1731058231946,-1852.42,0.00025542,2]
[341646057,1731058231955,-351.87,0.00025546,2]
[341646058,1731058231964,-803.0,0.00025556,2]
[341646059,1731058231974,-23900.0,0.00025557,2]
[341646060,1731058231983,-351.87,0.00025559,2]
[341646061,1731058231993,-351.87,0.00025572,2]
[341646062,1731058232002,-351.87,0.00025586,2]
[341646063,1731058232011,-351.87,0.00025599,2]
[341646064,1731058232020,-500.0,0.00025608,2]
[341646065,1731058232030,-351.87,0.00025613,2]
[341646066,1731058232040,-542.58,0.00025621,2]
[341646067,1731058232049,-351.87,0.00025626,2]
[341646068,1731058232059,-232.89,0.00025634,2]
[341646069,1731058232068,-351.87,0.0002564,2]
[341646070,1731058232077,-351.87,0.00025653,2]
[341646071,1731058232086,-250.0,0.00025659,2]
[341646072,1731058232095,-351.87,0.00025666,2]
[341646073,1731058232105,-424.14,0.00025673,2]
[341646074,1731058232115,-351.87,0.0002568,2]
[341646075,1731058232124,-1020.13,0.00025687,2]
[341646076,1731058232133,-351.87,0.00025693,2]
[341646077,1731058232142,-250.0,0.00025705,2]
[341646078,1731058232151,-351.87,0.00025707,2]
[341646079,1731058232161,-351.87,0.0002572,2]
[341646080,1731058232170,-215.92,0.00025723,2]
[341646081,1731058232180,-351.87,0.00025734,2]
[341646082,1731058232189,-351.87,0.00025747,2]
[341646083,1731058232199,-351.87,0.0002576,2]
[341646085,1731058232208,-230.65,0.00025851,30]
[341646087,1731058232217,-6275.32,0.00025894,2]
[341646089,1731058232227,-2177.14,0.00025926,2]
[341646091,1731058232236,-403.59,0.00026041,2]
[341646093,1731058232245,-300.0,0.000261,9]
[341646095,1731058232254,-362.0,0.00026178,2]
[341646097,1731058232263,-362.0,0.00026178,2]
[341646099,1731058232273,-362.0,0.00026192,2]
[341646101,1731058232283,-362.0,0.00026192,2]
[341646102,1731058232292,-362.0,0.00026192,2]
[341646104,1731058232301,-362.0,0.00026192,2]
[341646106,1731058232311,-362.0,0.00026192,2]
[341646108,1731058232320,-362.0,0.00026192,2]
[341646109,1731058232329,-356.8,0.00026192,2]
[341646110,1731058232338,-804.41,0.00026192,2]
[341646111,1731058232348,-24627.0,0.00026198,2]
[341646112,1731058232357,-700.0,0.000262,9]
[341646113,1731058232367,-1000.0,0.000263,9]
[341646114,1731058232377,-2177.14,0.00026324,2]
[341646115,1731058232386,-1400.0,0.000264,9]
[341646116,1731058232396,-165.32,0.00026459,2]
[341646117,1731058232405,-1700.0,0.000265,9]
[341646118,1731058232415,-300.0,0.000266,9]
[341646119,1731058232425,-152.0,0.00026675,3]
[341646120,1731058232436,-1397.991,0.00026694,2]
[341646121,1731058232445,-300.0,0.000267,9]
[341646122,1731058232455,-2177.14,0.00026721,2]
[341646123,1731058232464,-1500.0,0.00026728,2]
[341646124,1731058232474,-2000.0,0.0002673,2]
[341646125,1731058232483,-150.0,0.00026736,2]
[341646126,1731058232492,-150.0,0.00026738,2]
[341646127,1731058232502,-305.85800046,0.00026747,2]
[341646128,1731058232513,-150.0,0.00026752,2]
[341646129,1731058232523,-150.0,0.00026752,2]
[341646130,1731058232533,-150.0,0.00026765,2]
[341646131,1731058232542,-2000.0,0.00026774,5]
[341646132,1731058232551,-150.0,0.00026779,2]
[341646133,1731058232560,-150.0,0.0002679,2]
[341646134,1731058232569,-362.0,0.000268,2]
[341646135,1731058232578,-12894.5361,0.000268,2]
[341646136,1731058232587,-2375.674,0.000268,2]
[341646137,1731058232597,-150.0,0.000268,2]
[341646138,1731058232607,-5176.82014198,0.000268,2]
[341646139,1731058232619,-281.52781921,0.000268,2]
[341646140,1731058232628,-336.90130526,0.000268,2]
[341646141,1731058232637,-300.0,0.000268,9]
[341646142,1731058232647,-150.0,0.00026809,2]
[341646143,1731058232659,-5176.82014197,0.00026811,2]
[341646144,1731058232669,-506.81,0.00026812,3]
[341646145,1731058232679,-1500.0,0.00026813,2]
[341646146,1731058232688,-150.0,0.00026813,2]
[341646147,1731058232699,-150.0,0.00026813,2]
[341646148,1731058232708,-281.52781919,0.00026814,2]
[341646149,1731058232718,-150.0,0.00026816,2]
[341646150,1731058232727,-5176.82014197,0.00026822,2]
[341646151,1731058232738,-281.52781919,0.00026829,2]
[341646152,1731058232748,-5176.82014197,0.00026833,2]
[341646153,1731058232758,-1500.0,0.00026836,2]
[341646154,1731058232767,-150.0,0.00026838,2]
[341646155,1731058232776,-150.0,0.0002684,2]
[341646156,1731058232785,-281.52781919,0.00026843,2]
[341646157,1731058232794,-150.0,0.00026844,2]
[341646158,1731058232804,-5176.82014197,0.00026844,2]
[341646159,1731058232813,-150.0,0.00026852,2]
[341646160,1731058232822,-150.0,0.00026853,2]
[341646161,1731058232831,-5176.82014197,0.00026856,2]
[341646162,1731058232841,-150.0,0.00026857,2]
[341646163,1731058232850,-281.52781919,0.00026857,2]
[341646164,1731058232860,-5176.82014197,0.00026867,2]
[341646165,1731058232871,-150.0,0.00026868,2]
[341646166,1731058232880,-281.52781919,0.00026871,2]
[341646167,1731058232890,-354.14718788,0.00026873,2]
[341646168,1731058232899,-160.27274998,0.00026873,2]
[341646169,1731058232908,-500.0,0.00026873,2]
[341646170,1731058232918,-500.0,0.00026873,2]
[341646171,1731058232927,-150.0,0.00026877,2]
[341646172,1731058232936,-5176.82014197,0.00026878,2]
[341646173,1731058232946,-1500.0,0.0002688,2]
[341646174,1731058232955,-20206.72500941,0.0002688,2]
[341646175,1731058232965,-150.0,0.00026882,2]
[341646176,1731058232974,-281.52781919,0.00026886,2]
[341646177,1731058232984,-5176.82014197,0.00026889,2]
[341646178,1731058232993,-150.0,0.00026891,2]
[341646179,1731058233002,-150.0,0.00026892,2]
[341646180,1731058233012,-150.0,0.00026892,2]
[341646181,1731058233022,-1077.30976582,0.00026895,2]
[341646182,1731058233031,-126258.65812105,0.000269,2]
[341646183,1731058233050,-5860.06304756,0.000269,2]
[341646184,1731058233061,-7606.19167,0.000269,2]
[341646185,1731058233085,-13747.00997333,0.000269,2]
[341646186,1731058233096,-11349.49722993,0.000269,2]
[341646187,1731058233107,-2095.13003066,0.000269,2]
[341646188,1731058233139,-959.45593697,0.000269,2]
[341646189,1731058233151,-485.59853719,0.000269,2]
[341646190,1731058233163,-420.816,0.000269,2]
[341646191,1731058233593,-39220.97205331,0.000269,2]
[341646192,1731058233602,-65277.51443147,0.000269,2]
[341646193,1731058233613,-8357.80966853,0.000269,2]
[341646194,1731058233622,-527.1994,0.000269,2]
[341646195,1731058233632,-723.4985,0.000269,2]
[341646196,1731058233641,-938.43504994,0.000269,2]
[341646197,1731058233656,-1098.47305687,0.000269,2]
[341646198,1731058233668,-2225.79225984,0.000269,2]
[341646201,1731058237668,-500.0,0.00026889,2]
[341646202,1731058237680,-545.73887957,0.00026889,2]
[341646203,1731058237691,-500.0,0.00026889,2]
[341646204,1731058237700,-500.0,0.00026889,2]
[341646205,1731058237710,-5850.54873335,0.000269,2]
[341646206,1731058237719,-169.01803015,0.000269,2]
[341646207,1731058237728,-1077.30976582,0.000269,2]
[341646208,1731058237737,-300.0,0.000269,9]
[341646209,1731058237746,-4940.93316476,0.000269,2]
[341646210,1731058237759,-235.88697721,0.000269,2]
[341646211,1731058237768,-13350.96495326,0.000269,2]
[341646212,1731058237777,-281.52781919,0.000269,2]
[341646213,1731058237786,-203.19798515,0.000269,2]
[341646214,1731058237795,-336.90130525,0.000269,2]
[341646215,1731058237804,-236.01992898,0.000269,2]
[341646216,1731058237813,-542.58,0.00026902,2]
[341646217,1731058237822,-150.0,0.00026903,2]
[341646218,1731058237831,-150.0,0.00026911,2]
[341646219,1731058237841,-150.0,0.00026912,2]
[341646220,1731058237852,-150.0,0.00026915,2]
[341646221,1731058237861,-150.0,0.00026916,2]
[341646222,1731058237871,-31767.91676173,0.00026921,2]
[341646223,1731058237880,-1500.0,0.00026922,2]
[341646224,1731058237889,-31767.91676173,0.00026923,2]
[341646225,1731058237898,-18577.10970268,0.00026923,2]
[341646226,1731058237907,-300.0,0.00026923,2]
[341646227,1731058237918,-163096.86674911,0.00026924,2]
[341646228,1731058237927,-152.6915162,0.00026924,2]
[341646229,1731058237935,-150.0,0.00026924,2]
[341646230,1731058237946,-200.0,0.00026926,2]
[341646231,1731058237955,-163096.86674911,0.00026928,2]
[341646232,1731058237964,-150.0,0.00026929,2]
[341646233,1731058237973,-150.0,0.00026929,2]
[341646234,1731058237982,-6653.89576059,0.0002693,2]
[341646235,1731058237990,-163096.86674911,0.0002693,2]
[341646236,1731058237999,-2459.78511153,0.00026931,2]
[341646237,1731058238009,-6653.89576059,0.00026931,2]
[341646238,1731058238020,-2459.78511153,0.00026934,2]
[341646239,1731058238031,-200.0,0.00026935,2]
[341646240,1731058238040,-31767.91676173,0.00026935,2]
[341646241,1731058238049,-18577.10970268,0.00026937,2]
[341646242,1731058238058,-2431.7046716,0.00026938,2]
[341646243,1731058238078,-11075.1369969,0.00026938,2]
[341646244,1731058238089,-3096.12882267,0.00026938,2]
[341646245,1731058238100,-1974.13921151,0.00026938,2]
[341646246,1731058238110,-150.0,0.00026939,2]
[341646247,1731058238120,-150.0,0.00026939,2]
[341646248,1731058238129,-284.67924757,0.00026941,2]
[341646249,1731058238140,-8626.78479491,0.00026941,2]
[341646417,1731058239778,-1302.16514,0.00026941,2]
[341646706,1731058242699,-2500.0,0.000268,2]
[341646708,1731058242709,-500.0,0.00026873,2]
[341646710,1731058242718,-2194.27816325,0.000269,2]
[341646712,1731058242728,-4704.33783675,0.00026941,2]
[341646723,1731058242816,-1415.88886004,0.00026941,2]
[341646725,1731058242827,-7212.5661111,0.00026941,2]
[341646739,1731058242952,-3062.05362215,0.00026941,2]
[341646745,1731058242994,-5159.44114921,0.00026941,2]
[341646747,1731058243003,-200.0,0.00026941,2]
[341646749,1731058243013,-1814.5079301,0.00026942,2]
[341646754,1731058243055,-3415.85185373,0.00026942,2]
[341646761,1731058243116,-2380.23,0.00026942,2]
[341647051,1731058245966,-1211.64067028,0.00026942,2]
[341647054,1731058245984,-3802.7898,0.00026942,2]
[341647059,1731058246024,-4368.11308654,0.00026942,2]
[341647061,1731058246040,-7308.36753795,0.00026942,2]
[341647574,1731058262615,200.0,0.00023,2]
[341647576,1731058323803,200.0,0.00023,2]
[341647583,1731058661575,167.67,0.000228,2]
[341647585,1731058669382,158.11,0.00015342,2]
[341647587,1731058951373,-200.0,0.00023,2]
[341647588,1731058951396,-1140.44,0.00023401,2]
[341647589,1731058951417,-23357.5869315,0.00024053,2]
[341647590,1731058951439,-280.55,0.00024153,2]
[341647591,1731058951460,-604.31487296,0.00024999,2]
[341647592,1731058951480,-2297.0,0.00025,2]
[341647593,1731058951503,-7120.10819554,0.00025,2]
[341647594,1731058974268,-3500.0,0.00025,2]
[341647596,1731059230128,-200.0,0.00023,2]
[341647597,1731059230150,-166.9742637,0.00024842,2]
[341647598,1731059230172,-3308.0303,0.00024942,2]
[341647599,1731059230193,-676.0,0.00025,2]
[341647600,1731059230216,-3208.7,0.00025042,2]
[341647601,1731059230237,-1909.48592707,0.00025205,2]
[341647602,1731059243166,-4455.72756771,0.00025205,2]
[341647603,1731059244102,-5640.51193671,0.00025205,2]
[341647604,1731059244132,-1982.32937297,0.00025205,2]
[341647607,1731059341371,161.91,0.00015342,2]
[341647608,1731059342000,695.1349238,0.00020093,2]
[341647609,1731059342032,15650.9427339,0.00020093,2]
[341647610,1731059346144,-206.12325,0.00021087,2]
[341647611,1731059357653,3420.04,0.00024655,2]
[341647612,1731059360110,-520.12,0.00024862,2]
[341647614,1731059396610,166.59,0.00024627,2]
[341647615,1731059401800,250.0,0.00024642,2]
[341647617,1731059426766,723.88,0.00024855,2]
[341647618,1731059429522,171.7695,0.00021025,2]
[341647640,1731059431846,-2513.0,0.00025,2]
[341647641,1731059431856,-1474.01681119,0.00025051,2]
[341647642,1731059431907,-1946.02318881,0.00025051,2]
[341647643,1731059431916,-817.56836826,0.00025105,2]
[341647644,1731059431926,-285.35451704,0.00025105,2]
[341647645,1731059431936,-187969.79517261,0.0002517,2]
[341647646,1731059431946,-21704.13696532,0.00025205,2]
[341647647,1731059431956,-230.79173535,0.00025205,7]
[341647648,1731059431965,-500.0,0.00025205,7]
[341647649,1731059431975,-602.01413551,0.00025205,7]
[341647650,1731059431984,-150.0,0.0002526,2]
[341647651,1731059431994,-299.99,0.0002526,7]
[341647652,1731059432004,-1500.23,0.0002526,2]
[341647653,1731059432013,-446.69,0.00025264,2]
[341647654,1731059432023,-250.0,0.00025272,2]
[341647655,1731059432032,-466.82,0.00025277,2]
[341647656,1731059432042,-200.0,0.00025286,2]
[341647657,1731059432052,-1811.33,0.00025287,2]
[341647658,1731059432062,-4403.31,0.00025287,2]
[341647659,1731059432071,-2883.26,0.0002529,2]
[341647660,1731059432082,-4170.43093815,0.0002529,2]
[341647661,1731059432095,-614.30906185,0.0002529,2]
[341647662,1731059432105,-282.44,0.00025291,120]
[341647663,1731059432114,-150.99,0.00025291,2]
[341647664,1731059432124,-1338.95,0.00025291,2]
[341647665,1731059432134,-239.74,0.00025293,2]
[341647666,1731059432143,-466.82,0.00025293,2]
[341647667,1731059432153,-210.65436629,0.00025301,2]
[341647668,1731059432170,-1498.39846531,0.00025301,2]
[341647669,1731059432192,-113.91357946,0.00025301,2]
[341647670,1731059432203,-1221.87501474,0.00025301,2]
[341647671,1731059432225,-6.5885742,0.00025301,2]
[341647672,1731059432234,-160.867206,0.00025302,2]
[341647673,1731059432243,-1782.5442258,0.00025303,2]
[341647674,1731059432254,-265.83623177,0.00025303,2]
[341647675,1731059432265,-600.36112046,0.00025303,2]
[341647676,1731059432276,-2299.99999766,0.00025303,2]
[341647689,1731059438045,-500.0,0.00025169,2]
[341647690,1731059438055,-500.0,0.00025169,2]
[341647691,1731059438064,-500.0,0.00025169,2]
[341647692,1731059438073,-173.14473892,0.00025169,2]
[341647693,1731059438082,-500.0,0.00025169,2]
[341647694,1731059438096,-500.0,0.00025169,2]
[341647695,1731059438106,-265.82212875,0.00025169,2]
[341647696,1731059438115,-500.0,0.00025169,2]
[341647697,1731059438124,-315.77590857,0.00025169,2]
[341647698,1731059438134,-500.0,0.00025169,2]
[341647699,1731059438143,-500.0,0.00025169,2]
[341647700,1731059438152,-500.0,0.00025169,2]
[341647701,1731059438163,-500.0,0.00025169,2]
[341647702,1731059438172,-500.0,0.00025169,2]
[341647703,1731059438183,-500.0,0.00025169,2]
[341647704,1731059438192,-500.0,0.00025169,2]
[341647705,1731059438201,-500.0,0.00025169,2]
[341647706,1731059438210,-500.0,0.00025169,2]
[341647707,1731059438219,-243.14219367,0.00025169,2]
[341647708,1731059438229,-500.0,0.00025204,2]
[341647709,1731059438238,-618.92540329,0.00025204,2]
[341647710,1731059438247,-500.0,0.00025204,2]
[341647711,1731059438256,-18951.25842431,0.00025303,2]
[341647712,1731059438265,-817.5683682,0.00025304,2]
[341647713,1731059438274,-14152.65,0.00025316,2]
[341647714,1731059438284,-179.93,0.00025317,2]
[341647715,1731059438293,-250.0,0.00025335,2]
[341647716,1731059438303,-1314.54,0.00025347,2]
[341647717,1731059438312,-1706.07,0.00025364,2]
[341647718,1731059438321,-1187.42,0.00025365,2]
[341647719,1731059438330,-1500.0,0.0002538,2]
[341647720,1731059438340,-220.31,0.00025397,2]
[341647721,1731059438350,-468.34,0.00025402,2]
[341647722,1731059438359,-200.0,0.00025402,2]
[341647723,1731059438368,-1000.0,0.00025438,2]
[341647724,1731059438378,-168.55,0.00025442,2]
[341647725,1731059438387,-3420.04,0.00025447,2]
[341647726,1731059438397,-244.75,0.00025502,30]